{"text_format":"1","workbook":"xlsx","n_sheets":2,"sheets":["Parametri","CATALOGO"],"not_rendered":{"charts":0,"images":72,"macros":1,"external_links":0,"defined_names":1,"comments":0,"pivot_tables":0},"unopened":[],"bounds":{"document_bytes":16777216,"sheet_cells":100000,"rows_first":2000,"rows_last":500,"rows_between":2000,"halvings":0,"cell_chars":16384,"cell_head_chars":4096},"cells_cut":0,"cells_raw":0,"read":"whole","date_system":"1900"}

{"sheet":"Parametri","index":0,"n_rows":5,"n_cols":1,"rows_kept":5,"cut":false,"hidden":true,"merged":[]}
["DRIVER=SQL Server;SERVER=93.62.215.116;UID=sa;PWD=Sirio2019;"]
["93.62.215.116"]
["PP_BEESTORE"]
["sa"]
["Sirio2019"]

{"sheet":"CATALOGO","index":1,"n_rows":54,"n_cols":71,"rows_kept":54,"cut":false,"hidden":false,"merged":[]}
[0," "," "," "," "," "," "," "," "," "," "," "," "," "," "," "," "," "," "," "," "," ","ABBIGLIAMENTO ITA/FRA","A","32","34","36","38","40","42","44","46","48","50","52","54","56","58","60","62","64",null,null,null,null,null,null,null,null,null,null,null,null,null,null,null,null,null,null,null,null,null,null,null,null,null,null,null,null," "," "]
[0," "," "," "," "," "," "," "," "," "," "," "," "," "," "," "," "," "," "," "," "," ","CALZATURE(USA)   GUANTI","F","1","1+","2","2+","3","3+","4","4+","5","5+","6","6+","7","7+","8","8+","9","9+","10","10+","11","11+","12","12+","13","13+","14","14+","15","5/6","6/7","7/8","7,5/8,5","8/9","8,5/9,5","9/10","9,5/10,5","10/11","10,5/11,5","11/12",null,null,null,null,null," "," "]
[0," "," "," "," "," "," "," "," "," "," "," "," "," "," "," "," "," "," "," "," "," ","CALZATURE (UK)","G","2","2+","3","3+","4","4+","5","5+","6","6+","7","7+","8","8+","9","9+","10","10+","11","11+","12","12+","13","13+","14",null,null,null,null,null,null,null,null,null,null,null,null,null,null,null,null,null,null,null,null," "," "]
[0," "," "," "," "," "," "," "," "," "," "," "," "," "," "," "," "," "," "," "," "," ","XXXS-XXXL","H","3XS","XXS","XS","S","M","L","XL","XXL","XXXL","4XL","S/M","M/L","L/XL","XL/XXL","XXL/3XL","5XL","6XL","XS/S","P","S/SF","M/SF","L/SF","4XS","XXS/XS","XSSF","1C","1S","2C","2S","XXS/S","Z","0","1","P - ANNULL",null,null,null,null,null,null,null,null,null,null,null," "," "]
[0," "," "," "," "," "," "," "," "," "," "," "," "," "," "," "," "," "," "," "," "," ","UNICA (Borse/Acc.)","T","TU",null,null,null,null,null,null,null,null,null,null,null,null,null,null,null,null,null,null,null,null,null,null,null,null,null,null,null,null,null,null,null,null,null,null,null,null,null,null,null,null,null,null,null,null," "," "]
[0," "," "," "," "," "," "," "," "," "," "," "," "," "," "," "," "," "," "," "," "," ","0 - 12","W","0","1","2","3","4","5","6","7","8","9","10","11","12","13","14","15","16","17","18","2+","3+","0-2","00","000",null,null,null,null,null,null,null,null,null,null,null,null,null,null,null,null,null,null,null,null,null," "," "]
[0]
[1,null,null,null,null,null,null,"IDArticolo","Cost","Retail","Brand","Gender","Department","Description","Model","Season","Samples","Variante","Made-in","Material","Etichetta","Category","DescScalarino","Scalarino",null,null,null,null,null,null,null,null,null,null,null,null,null,null,null,null,null,null,null,null,null,null,null,null,null,null,null,null,null,null,null,null,null,null,null,null,null,null,null,null,null,null,null,null,null,"Totale","TotalePrz"]
[2,"LACOSTEUOMOCAPPELLI",null,null,null,null,null,"771218","27.913","65","LACOSTE","MAN","ACCESSORIES","CAPPELLO","RK9871 SIY","23W","Precollezione","SIY","EXTRA U.E.","100%  Polyester","ACCESSORI","HATS","UNICA (Borse/Acc.)","T",6,null,null,null,null,null,null,null,null,null,null,null,null,null,null,null,null,null,null,null,null,null,null,null,null,null,null,null,null,null,null,null,null,null,null,null,null,null,null,null,null,null,null,null,null,{"$f":"SUM(Y9:BQ9)","v":6},{"$f":" BR9 * SUBSTITUTE(I9,\".\",\",\")","v":167.47800000000001}]
[2,"LACOSTEUOMOFELPE",null,null,null,null,null,"768033","118.7","285","LACOSTE","MAN","CLOTHING","FELPA","BH1582 KG2","23W","Precollezione","KG2","CHINA","100%  Cotton","FELPE","SWEATSHIRTS","ABBIGLIAMENTO ITA/FRA","A",null,null,null,null,null,null,null,5,null,null,null,null,null,null,null,null,null,null,null,null,null,null,null,null,null,null,null,null,null,null,null,null,null,null,null,null,null,null,null,null,null,null,null,null,null,5,593.5]
[2,"LACOSTEUOMOFELPE",null,null,null,null,null,"768066","64.7","155","LACOSTE","MAN","CLOTHING","FELPA","SH1094 258","23W","Precollezione","258","EU","100% Mixed fibres","FELPE","SWEATSHIRTS","0 - 12","W",null,null,20,null,null,null,null,null,null,null,null,null,null,null,null,null,null,null,null,null,null,null,null,null,null,null,null,null,null,null,null,null,null,null,null,null,null,null,null,null,null,null,null,null,null,20,1294]
[2,"LACOSTEUOMOFELPE",null,null,null,null,null,"768073","64.7","155","LACOSTE","MAN","CLOTHING","FELPA","SH1536 CCA","23W","Precollezione","CCA","CHINA","100%  Cotton","FELPE","SWEATSHIRTS","XXXS-XXXL","H",null,null,1,null,null,null,null,null,null,null,null,null,null,null,null,null,null,null,null,null,null,null,null,null,null,null,null,null,null,null,null,null,null,null,null,null,null,null,null,null,null,null,null,null,null,1,64.7]
[2,"LACOSTEUOMOFELPE",null,null,null,null,null,"771200","77.25","180","LACOSTE","MAN","CLOTHING","FELPA","BH1041 LLI","23W","Precollezione","LLI","EXTRA U.E.","100% Polyamide o Nylon","FELPE","SWEATSHIRTS","ABBIGLIAMENTO ITA/FRA","A",null,null,null,null,null,null,null,18,17,19,null,1,null,null,null,null,null,null,null,null,null,null,null,null,null,null,null,null,null,null,null,null,null,null,null,null,null,null,null,null,null,null,null,null,null,55,4248.75]
[2,"LACOSTEUOMOFELPE",null,null,null,null,null,"771223","66.641","155","LACOSTE","MAN","CLOTHING","FELPA","SH1536 SNI","23W","Precollezione","SNI","EXTRA U.E.","100%  Cotton","FELPE","SWEATSHIRTS","XXXS-XXXL","H",null,null,1,null,null,null,null,null,null,null,null,null,null,null,null,null,null,null,null,null,null,null,null,null,null,null,null,null,null,null,null,null,null,null,null,null,null,null,null,null,null,null,null,null,null,1,66.641000000000005]
[2,"LACOSTEUOMOPANTALONI",null,null,null,null,null,"617949","50","120","LACOSTE","MAN","CLOTHING","PANTALONI","HH2777 7SY","22S","Precollezione","7SY",null,"Exterior: 97% Cotton 3% Elastane","PANTALONI","PANTS","ABBIGLIAMENTO ITA/FRA","A",null,null,null,null,null,1,1,null,null,null,null,null,null,null,null,null,null,null,null,null,null,null,null,null,null,null,null,null,null,null,null,null,null,null,null,null,null,null,null,null,null,null,null,null,null,2,100]
[2,"LACOSTEUOMOPANTALONI",null,null,null,null,null,"675162","50","120","LACOSTE","MAN","CLOTHING","PANTALONE","XH9371 166","22W","Precollezione","166","MADE IN EXTRA U.E.","100%  Cotton","PANTALONI","PANTS","0 - 12","W",null,null,null,null,1,null,null,null,null,null,null,null,null,null,null,null,null,null,null,null,null,null,null,null,null,null,null,null,null,null,null,null,null,null,null,null,null,null,null,null,null,null,null,null,null,1,50]
[2,"LACOSTEUOMOPANTALONI",null,null,null,null,null,"702089","50","120","LACOSTE","MAN","CLOTHING","PANTALONE","XH7262 TII","23S","Precollezione","TII","EU","100%  Polyester","PANTALONI","PANTS","0 - 12","W",null,null,null,null,10,10,5,null,null,null,null,null,null,null,null,null,null,null,null,null,null,null,null,null,null,null,null,null,null,null,null,null,null,null,null,null,null,null,null,null,null,null,null,null,null,25,1250]
[2,"LACOSTEUOMOPANTALONI",null,null,null,null,null,"768104","60.5","145","LACOSTE","MAN","CLOTHING","PANTALONE","XH1521 SNI","23W","Precollezione","SNI","CHINA","100%  Cotton","PANTALONI","PANTS","XXXS-XXXL","H",null,null,1,2,2,1,null,1,null,null,null,null,null,null,null,null,null,null,null,null,null,null,null,null,null,null,null,null,null,null,null,null,null,null,null,null,null,null,null,null,null,null,null,null,null,7,423.5]
[2,"LACOSTEUOMOPANTALONI",null,null,null,null,null,"768107","54.15","130","LACOSTE","MAN","CLOTHING","PANTALONE","XH1794 258","23W","Precollezione","258","GREECE","100% Polyamide o Nylon","PANTALONI","PANTS","0 - 12","W",null,null,30,8,null,null,null,null,null,null,null,null,null,null,null,null,null,null,null,null,null,null,null,null,null,null,null,null,null,null,null,null,null,null,null,null,null,null,null,null,null,null,null,null,null,38,2057.6999999999998]
[2,"LACOSTEUOMOPANTALONI",null,null,null,null,null,"768109","54.15","130","LACOSTE","MAN","CLOTHING","PANTALONE","XH1794 GE5","23W","Precollezione","GE5","EXTRA U.E.","100%  Cotton","PANTALONI","PANTS","0 - 12","W",null,null,20,20,20,10,5,null,null,null,null,null,null,null,null,null,null,null,null,null,null,null,null,null,null,null,null,null,null,null,null,null,null,null,null,null,null,null,null,null,null,null,null,null,null,75,4061.25]
[2,"LACOSTEUOMOPANTALONI",null,null,null,null,null,"771229","62.32","145","LACOSTE","MAN","CLOTHING","PANTALONE","XH1521 CCA","23W","Precollezione","CCA","EXTRA U.E.","100%  Cotton","PANTALONI","PANTS","XXXS-XXXL","H",null,null,5,null,null,null,null,null,null,null,null,null,null,null,null,null,null,null,null,null,null,null,null,null,null,null,null,null,null,null,null,null,null,null,null,null,null,null,null,null,null,null,null,null,null,5,311.60000000000002]
[2,"LACOSTEUOMOPANTALONI",null,null,null,null,null,"771230","70.864","165","LACOSTE","MAN","CLOTHING","PANTALONE","XH1624 KG2","23W","Precollezione","KG2","EXTRA U.E.","100%  Cotton","PANTALONI","PANTS","0 - 12","W",null,null,25,25,25,5,5,null,null,null,null,null,null,null,null,null,null,null,null,null,null,null,null,null,null,null,null,null,null,null,null,null,null,null,null,null,null,null,null,null,null,null,null,null,null,85,6023.4400000000005]
[2,"LACOSTEUOMOPANTALONI",null,null,null,null,null,"771233","55.7745","130","LACOSTE","MAN","CLOTHING","PANTALONE","XH1794 DQ5","23W","Precollezione","DQ5","ITALY","100% Polyamide o Nylon","PANTALONI","PANTS","0 - 12","W",null,null,20,19,null,3,null,null,null,null,null,null,null,null,null,null,null,null,null,null,null,null,null,null,null,null,null,null,null,null,null,null,null,null,null,null,null,null,null,null,null,null,null,null,null,42,2342.529]
[2,"LACOSTEUOMOPANTALONI",null,null,null,null,null,"791998","55.77","130","LACOSTE","MAN","CLOTHING","PANTALONE","XH7587 ISX","24S","Precollezione","ISX","VIETNAM","Exterior: 100% Polyester Lining: 65% Polyester 35% Cotton","PANTALONI","PANTS","0 - 12","W",null,null,9,9,null,null,null,null,null,null,null,null,null,null,null,null,null,null,null,null,null,null,null,null,null,null,null,null,null,null,null,null,null,null,null,null,null,null,null,null,null,null,null,null,null,18,1003.86]
[2,"LACOSTEUOMOPANTALONI",null,null,null,null,null,"791999","51.5","120","LACOSTE","MAN","CLOTHING","PANTALONE","XH8333 IS1","24S","Precollezione","IS1","VIETNAM","Exterior: 100% Polyester Lining: 65% Polyester 35% Cotton","PANTALONI","PANTS","0 - 12","W",null,null,17,19,null,null,null,null,null,null,null,null,null,null,null,null,null,null,null,null,null,null,null,null,null,null,null,null,null,null,null,null,null,null,null,null,null,null,null,null,null,null,null,null,null,36,1854]
[2,"LACOSTEUOMOPANTALONI",null,null,null,null,null,"792000","51.5","120","LACOSTE","MAN","CLOTHING","PANTALONE","XH8333 ISB","24S","Precollezione","ISB","VIETNAM","Exterior: 100% Polyester Lining: 65% Polyester 35% Cotton","PANTALONI","PANTS","0 - 12","W",null,null,50,48,30,12,8,4,1,null,null,null,null,null,null,null,null,null,null,null,null,null,null,null,null,null,null,null,null,null,null,null,null,null,null,null,null,null,null,null,null,null,null,null,null,153,7879.5]
[2,"LACOSTEUOMOPANTALONI",null,null,null,null,null,"792001","51.5","120","LACOSTE","MAN","CLOTHING","PANTALONE","XH8333 ISH","24S","Precollezione","ISH","VIETNAM","Exterior: 100% Polyester Lining: 65% Polyester 35% Cotton","PANTALONI","PANTS","0 - 12","W",null,null,40,40,39,39,25,7,3,null,null,null,null,null,null,null,null,null,null,null,null,null,null,null,null,null,null,null,null,null,null,null,null,null,null,null,null,null,null,null,null,null,null,null,null,193,9939.5]
[2,"LACOSTEUOMOPOLO",null,null,null,null,null,"768041","50","120","LACOSTE","MAN","CLOTHING","POLO","DH1082 MIQ","23W","Precollezione","MIQ","EXTRA U.E.","100%  Cotton","T-SHIRT","POLO","0 - 12","W",null,null,5,4,null,null,null,null,null,null,null,null,null,null,null,null,null,null,null,null,null,null,null,null,null,null,null,null,null,null,null,null,null,null,null,null,null,null,null,null,null,null,null,null,null,9,450]
[2,"LACOSTEUOMOPOLO",null,null,null,null,null,"768044","41.65","100","LACOSTE","MAN","CLOTHING","POLO","DH1092 LIZ","23W","Precollezione","LIZ","EXTRA U.E.","100%  Cotton","T-SHIRT","POLO","0 - 12","W",null,null,3,null,null,null,null,null,null,null,null,null,null,null,null,null,null,null,null,null,null,null,null,null,null,null,null,null,null,null,null,null,null,null,null,null,null,null,null,null,null,null,null,null,null,3,124.94999999999999]
[2,"LACOSTEUOMOPOLO",null,null,null,null,null,"768049","58.35","140","LACOSTE","MAN","CLOTHING","POLO","DH1099 MIU","23W","Precollezione","MIU","EXTRA U.E.","100%  Cotton","T-SHIRT","POLO","0 - 12","W",null,null,null,5,5,5,5,null,null,null,null,null,null,null,null,null,null,null,null,null,null,null,null,null,null,null,null,null,null,null,null,null,null,null,null,null,null,null,null,null,null,null,null,null,null,20,1167]
[2,"LACOSTEUOMOPOLO",null,null,null,null,null,"771206","60.1005","140","LACOSTE","MAN","CLOTHING","POLO","DH1099 IZF","23W","Precollezione","IZF","france","100% Mixed fibres","T-SHIRT","POLO","0 - 12","W",null,null,null,5,5,5,5,null,null,null,null,null,null,null,null,null,null,null,null,null,null,null,null,null,null,null,null,null,null,null,null,null,null,null,null,null,null,null,null,null,null,null,null,null,null,20,1202.01]
[2,"LACOSTEUOMOPOLO",null,null,null,null,null,"771207","60.1005","140","LACOSTE","MAN","CLOTHING","POLO","DH1099 LIH","23W","Precollezione","LIH","france","100% Mixed fibres","T-SHIRT","POLO","0 - 12","W",null,null,null,null,4,5,2,null,null,null,null,null,null,null,null,null,null,null,null,null,null,null,null,null,null,null,null,null,null,null,null,null,null,null,null,null,null,null,null,null,null,null,null,null,null,11,661.10550000000001]
[2,"LACOSTEUOMOPOLO",null,null,null,null,null,"771208","60.1005","140","LACOSTE","MAN","CLOTHING","POLO","DH1099 Q7I","23W","Precollezione","Q7I","france","100% Mixed fibres","T-SHIRT","POLO","0 - 12","W",null,null,4,5,2,1,4,null,null,null,null,null,null,null,null,null,null,null,null,null,null,null,null,null,null,null,null,null,null,null,null,null,null,null,null,null,null,null,null,null,null,null,null,null,null,16,961.60799999999995]
[2,"LACOSTEUOMOPOLO",null,null,null,null,null,"791909","45.85","110","LACOSTE","MAN","CLOTHING","POLO","1212 316","24S","Precollezione","316",null,"Exterior: 100% Cotton","T-SHIRT","POLO","0 - 12","W",null,null,null,null,null,null,null,1,null,null,null,null,null,null,null,null,null,null,null,null,null,null,null,null,null,null,null,null,null,null,null,null,null,null,null,null,null,null,null,null,null,null,null,null,null,1,45.85]
[2,"LACOSTEUOMOPOLO",null,null,null,null,null,"791930","40.79","95","LACOSTE","MAN","CLOTHING","T-SHIRT","DH8335 ISJ","24S","Precollezione","ISJ","TUNISIA","Exterior: 100% Polyester","T-SHIRT","POLO","0 - 12","W",null,null,55,49,8,null,null,null,null,null,null,null,null,null,null,null,null,null,null,null,null,null,null,null,null,null,null,null,null,null,null,null,null,null,null,null,null,null,null,null,null,null,null,null,null,112,4568.4799999999996]
[2,"LACOSTEUOMOPOLO",null,null,null,null,null,"791931","40.79","95","LACOSTE","MAN","CLOTHING","T-SHIRT","DH8335 ISQ","24S","Precollezione","ISQ","TUNISIA","Exterior: 100% Polyester","T-SHIRT","POLO","0 - 12","W",null,null,57,48,14,7,null,3,null,null,null,null,null,null,null,null,null,null,null,null,null,null,null,null,null,null,null,null,null,null,null,null,null,null,null,null,null,null,null,null,null,null,null,null,null,129,5261.91]
[2,"LACOSTEUOMOPOLO",null,null,null,null,null,"792002","40.79","95","LACOSTE","MAN","CLOTHING","T-SHIRT","DH8332 ISD","24S","Precollezione","ISD",null,"Exterior: 100% Polyester","T-SHIRT","POLO","0 - 12","W",null,null,38,13,null,null,null,null,null,null,null,null,null,null,null,null,null,null,null,null,null,null,null,null,null,null,null,null,null,null,null,null,null,null,null,null,null,null,null,null,null,null,null,null,null,51,2080.29]
[2,"LACOSTEUOMOSHORTS",null,null,null,null,null,"702036","31.25","75","LACOSTE","MAN","CLOTHING","SHORTS","GH7263 UIB","23S","Precollezione","UIB","MADE IN FRANCE","100%  Cotton","PANTALONI","SHORTS","0 - 12","W",null,null,8,8,8,8,8,null,null,null,null,null,null,null,null,null,null,null,null,null,null,null,null,null,null,null,null,null,null,null,null,null,null,null,null,null,null,null,null,null,null,null,null,null,null,40,1250]
[2,"LACOSTEUOMOSHORTS",null,null,null,null,null,"791936","32.19","75","LACOSTE","MAN","CLOTHING","SHORTS","GH8330 ISJ","24S","Precollezione","ISJ","VIETNAM","Exterior: 100% Polyester Lining: 65% Polyester 35% Cotton","PANTALONI","SHORTS","0 - 12","W",null,null,60,58,34,14,9,5,3,null,null,null,null,null,null,null,null,null,null,null,null,null,null,null,null,null,null,null,null,null,null,null,null,null,null,null,null,null,null,null,null,null,null,null,null,183,5890.7699999999995]
[2,"LACOSTEUOMOSHORTS",null,null,null,null,null,"791938","32.19","75","LACOSTE","MAN","CLOTHING","SHORTS","GH8330 ISQ","24S","Precollezione","ISQ","VIETNAM","Exterior: 100% Polyester Lining: 65% Polyester 35% Cotton","PANTALONI","SHORTS","0 - 12","W",null,null,60,60,34,20,9,5,3,null,null,null,null,null,null,null,null,null,null,null,null,null,null,null,null,null,null,null,null,null,null,null,null,null,null,null,null,null,null,null,null,null,null,null,null,191,6148.29]
[2,"LACOSTEUOMOT-SHIRT",null,null,null,null,null,"702060","31.25","75","LACOSTE","MAN","CLOTHING","T-SHIRT","TH5196 A9C","23S","Precollezione","Multicolor","MADE IN FRANCE","100%  Polyester","T-SHIRT","T-SHIRTS","0 - 12","W",null,null,10,10,10,10,5,null,null,null,null,null,null,null,null,null,null,null,null,null,null,null,null,null,null,null,null,null,null,null,null,null,null,null,null,null,null,null,null,null,null,null,null,null,null,{"$f":"SUM(Y41:BQ41)","v":45},{"$f":" BR41 * SUBSTITUTE(I41,\".\",\",\")","v":1406.25}]
[2,"LACOSTEUOMOT-SHIRT",null,null,null,null,null,"702061","31.25","75","LACOSTE","MAN","CLOTHING","T-SHIRT","TH5196 XGI","23S","Precollezione","Multicolor","MADE INITALY","100%  Cotton","T-SHIRT","T-SHIRTS","0 - 12","W",null,null,null,null,null,null,20,null,null,null,null,null,null,null,null,null,null,null,null,null,null,null,null,null,null,null,null,null,null,null,null,null,null,null,null,null,null,null,null,null,null,null,null,null,null,20,625]
[2,"LACOSTEUOMOT-SHIRT",null,null,null,null,null,"702062","31.25","75","LACOSTE","MAN","CLOTHING","T-SHIRT","TH5196 XHI","23S","Precollezione","Multicolor","EU","100%  Polyester","T-SHIRT","T-SHIRTS","0 - 12","W",null,null,null,null,null,null,10,null,null,null,null,null,null,null,null,null,null,null,null,null,null,null,null,null,null,null,null,null,null,null,null,null,null,null,null,null,null,null,null,null,null,null,null,null,null,10,312.5]
[2,"LACOSTEUOMOT-SHIRT",null,null,null,null,null,"702070","31.25","75","LACOSTE","MAN","CLOTHING","T-SHIRT","TH7264 X6Y","23S","Precollezione","X6Y","MADE IN FRANCE","100%  Polyester","T-SHIRT","T-SHIRTS","0 - 12","W",null,null,8,8,8,8,8,null,null,null,null,null,null,null,null,null,null,null,null,null,null,null,null,null,null,null,null,null,null,null,null,null,null,null,null,null,null,null,null,null,null,null,null,null,null,40,1250]
[2,"LACOSTEUOMOT-SHIRT",null,null,null,null,null,"791908","45.85","110","LACOSTE","MAN","CLOTHING","T-SHIRT","1212 107","24S","Precollezione","107","ITALY","Exterior: 100% Cotton","T-SHIRT","T-SHIRTS","0 - 12","W",null,null,2,2,2,2,null,null,null,null,null,null,null,null,null,null,null,null,null,null,null,null,null,null,null,null,null,null,null,null,null,null,null,null,null,null,null,null,null,null,null,null,null,null,null,8,366.8]
[2,"LACOSTEUOMOT-SHIRT",null,null,null,null,null,"791969","29.15","70","LACOSTE","MAN","CLOTHING","T-SHIRT","TH1147 IXX","24S","Precollezione","IXX","TUNISIA","100COTTON","T-SHIRT","T-SHIRTS","XXXS-XXXL","H",null,null,null,null,null,null,null,1,null,null,null,null,null,null,null,null,null,null,null,null,null,null,null,null,null,null,null,null,null,null,null,null,null,null,null,null,null,null,null,null,null,null,null,null,null,1,29.15]
[2,"LACOSTEUOMOT-SHIRT",null,null,null,null,null,"791983","34.35","80","LACOSTE","MAN","CLOTHING","T-SHIRT","TH7515 291","24S","Precollezione","291","TUNISIA","Exterior: 100% Polyester","T-SHIRT","T-SHIRTS","0 - 12","W",null,null,25,6,null,null,null,1,null,null,null,null,null,null,null,null,null,null,null,null,null,null,null,null,null,null,null,null,null,null,null,null,null,null,null,null,null,null,null,null,null,null,null,null,null,32,1099.2]
[2,"LACOSTEUOMOT-SHIRT",null,null,null,null,null,"791987","33.35","80","LACOSTE","MAN","CLOTHING","T-SHIRT","TH7545 IXW","24S","Precollezione","IXW","Sri Lanka","Exterior: 100% Polyester","T-SHIRT","T-SHIRTS","0 - 12","W",null,null,34,29,2,null,null,null,null,null,null,null,null,null,null,null,null,null,null,null,null,null,null,null,null,null,null,null,null,null,null,null,null,null,null,null,null,null,null,null,null,null,null,null,null,65,2167.75]
[2,"LACOSTEUOMOT-SHIRT",null,null,null,null,null,"791988","33.35","80","LACOSTE","MAN","CLOTHING","T-SHIRT","TH7545 IY4","24S","Precollezione","IY4","Sri Lanka","Exterior: 100% Polyester","T-SHIRT","T-SHIRTS","0 - 12","W",null,null,18,18,11,null,null,null,null,null,null,null,null,null,null,null,null,null,null,null,null,null,null,null,null,null,null,null,null,null,null,null,null,null,null,null,null,null,null,null,null,null,null,null,null,47,1567.45]
[2,"LACOSTEUOMOT-SHIRT",null,null,null,null,null,"791989","34.35","80","LACOSTE","MAN","CLOTHING","T-SHIRT","TH8336 ISB","24S","Precollezione","ISB","TUNISIA","Exterior: 100% Polyester","T-SHIRT","T-SHIRTS","0 - 12","W",null,null,31,16,null,null,null,null,null,null,null,null,null,null,null,null,null,null,null,null,null,null,null,null,null,null,null,null,null,null,null,null,null,null,null,null,null,null,null,null,null,null,null,null,null,47,1614.45]
[2,"LACOSTEUOMOT-SHIRT",null,null,null,null,null,"791990","34.35","80","LACOSTE","MAN","CLOTHING","T-SHIRT","TH8336 ISH","24S","Precollezione","ISH","TUNISIA","Exterior: 100% Polyester","T-SHIRT","T-SHIRTS","0 - 12","W",null,null,27,25,14,20,15,4,1,null,null,null,null,null,null,null,null,null,null,null,null,null,null,null,null,null,null,null,null,null,null,null,null,null,null,null,null,null,null,null,null,null,null,null,null,106,3641.1000000000004]
[2,"LACOSTEUOMOTUTE",null,null,null,null,null,"791995","103","240","LACOSTE","MAN","CLOTHING","TUTA","WH8334 ISJ","24S","Precollezione","ISJ","VIETNAM","Exterior: 100% Polyester Lining: 100% Polyester","TUTE","JUMPSUITS","0 - 12","W",null,null,84,32,16,null,null,null,null,null,null,null,null,null,null,null,null,null,null,null,null,null,null,null,null,null,null,null,null,null,null,null,null,null,null,null,null,null,null,null,null,null,null,null,null,132,13596]
[2,"LACOSTEUOMOTUTE",null,null,null,null,null,"791996","103","240","LACOSTE","MAN","CLOTHING","TUTA","WH8334 ISQ","24S","Precollezione","ISQ","VIETNAM","Exterior: 100% Polyester Lining: 100% Polyester","TUTE","JUMPSUITS","0 - 12","W",null,null,18,18,15,null,null,null,null,null,null,null,null,null,null,null,null,null,null,null,null,null,null,null,null,null,null,null,null,null,null,null,null,null,null,null,null,null,null,null,null,null,null,null,null,51,5253]
[null,null,null,null,null,null,null,null,null,null,null,null,null,null,null,null,null,null,null,null,null,null,null,null,null,null,null,null,null,null,null,null,null,null,null,null,null,null,null,null,null,null,null,null,null,null,null,null,null,null,null,null,null,null,null,null,null,null,null,null,null,null,null,null,null,null,null,null,null,{"$f":"SUM(BR9:BR53)","v":2158}]